bitfinex-derivatives/quotes_SOLF0:USTF0_20240913
["timestamp","ask_amount","ask_price","bid_price","bid_amount"]
[1726264362285,28.35298213,139.03,139.01,3.5944]
[1726264362487,17.29298213,139.02,139.01,3.5944]
[1726264362880,28.35298213,139.03,139.01,3.5944]
[1726264363077,17.29298213,139.03,139.01,3.5944]
[1726264363281,17.29298213,139.02,139.01,3.5944]
[1726264363891,28.35298213,139.03,139.01,3.5944]
[1726264364093,17.29298213,139.02,139.01,3.5944]
[1726264364983,28.35298213,139.03,139.01,3.5944]
[1726264365183,17.29298213,139.02,139.01,3.5944]
[1726264365383,28.35298213,139.03,139.01,3.5944]
[1726264366285,11.06,139.02,139.01,3.5944]
[1726264366487,17.29298213,139.03,139.01,3.5944]
[1726264366687,17.29298213,139.02,139.01,3.5944]
[1726264366992,11.06,139.03,139.01,3.5944]
[1726264367184,28.35298213,139.03,139.01,3.5944]
[1726264367381,17.29298213,139.02,139.01,3.5944]
[1726264367886,28.35298213,139.03,139.01,3.5944]
[1726264368084,17.29298213,139.02,139.01,3.5944]
[1726264368781,28.35298213,139.03,139.01,3.5944]
[1726264371493,17.29298213,139.03,139.01,3.5944]
[1726264371693,28.35298213,139.02,139.01,3.5944]
[1726264371894,11.06,139.02,139.01,3.5944]
[1726264376997,17.29298213,139.03,139.01,3.5944]
[1726264377203,3.56112089,139.04,139.02,3.5942]
[1726264377500,11.06,139.03,139.02,3.5942]
[1726264377900,11.06,139.03,138.98,11.06]
[1726264377901,11.06,139.03,139.01,3.5944]
[1726264378402,28.35344473,139.03,139.01,3.5944]
[1726264378598,17.29344473,139.03,139.01,3.5944]
[1726264378799,28.35344473,139.02,139.01,3.5944]
[1726264379191,11.06,139.02,139.01,3.5944]
[1726264381905,17.29344473,139.03,139.02,3.5942]
[1726264382103,28.35344473,139.03,139.02,3.5942]
[1726264382692,17.29344473,139.03,139.02,3.5942]
[1726264383093,28.35344473,139.03,139.02,3.5942]
[1726264383712,28.35344473,139.03,139.01,3.5944]
[1726264385100,17.29344473,139.03,139.01,3.5944]
[1726264385408,17.29344473,139.02,139.01,3.5944]
[1726264385909,17.29344473,139.02,138.97,1.379]
[1726264385910,31.94744473,139.03,139.0,3.5946]
[1726264386106,17.29344473,139.02,139.0,3.5946]
[1726264386409,11.06,139.02,139.0,3.5946]
[1726264386807,28.35358852,139.02,139.0,3.5946]
[1726264387110,11.06,139.02,139.0,3.5946]
[1726264388920,11.06,139.02,139.01,3.5945]
[1726264393714,11.06,139.02,139.0,3.5946]
[1726264393911,11.06,139.01,139.0,3.5946]
[1726264399218,22.30910217,139.03,138.91,1.386]
[1726264399410,11.06,139.01,138.95,11.06]
[1726264399611,28.35340217,139.01,138.95,11.06]
[1726264399806,17.29340217,139.0,138.99,3.5949]
[1726264400424,11.06,139.01,138.99,3.5949]
[1726264400807,28.35340217,139.01,138.99,3.5949]
[1726264401012,17.29340217,139.0,138.99,3.5949]
[1726264401217,11.06,139.01,138.99,3.5949]
[1726264402423,11.06,139.0,138.99,3.5949]
[1726264406926,11.06,139.0,138.94,11.06]
[1726264407121,11.06,138.99,138.94,11.06]
[1726264407915,11.06,138.99,138.98,3.5951]
[1726264408917,2.6249,139.02,138.98,3.5951]
[1726264409117,11.06,138.99,138.98,3.5951]
[1726264410215,11.06,138.99,138.94,11.06]
[1726264412021,11.06,138.99,138.97,3.5953]
[1726264413622,11.06,138.98,138.97,3.5953]
[1726264420026,12.3723,138.99,138.98,3.5953]
[1726264420238,12.3723,138.99,138.93,11.06]
[1726264420533,12.3723,138.99,138.97,3.5954]
[1726264420720,1.3123,138.99,138.97,3.5954]
[1726264420917,11.06,138.98,138.97,3.5954]
[1726264421629,1.3123,138.99,138.93,11.06]
[1726264421926,12.3723,138.99,138.93,11.06]
[1726264423232,12.3723,138.99,138.96,3.5956]
[1726264423435,1.3123,138.99,138.93,11.06]
[1726264423935,1.3214,139.02,138.96,11.06]
[1726264424230,1.3244,139.03,138.97,11.06]
[1726264424431,11.06,139.02,139.0,3.5946]
[1726264424930,18.62014594,139.03,139.0,3.5946]
[1726264425136,28.35574594,139.02,139.0,3.5946]
[1726264425436,17.29574594,139.01,139.0,3.5946]
[1726264425824,11.06,139.02,139.0,3.5946]
[1726264426019,4.93412219,139.03,139.01,3.5945]
[1726264426227,11.06,139.02,139.01,3.5945]
[1726264426429,4.93412219,139.03,139.01,3.5945]
[1726264426643,33.28730476,139.03,139.01,3.5945]
[1726264426836,15.99412219,139.03,139.01,3.5945]
[1726264429136,33.2871212,139.03,139.01,3.5945]
[1726264429531,33.2871212,139.03,139.0,3.5947]
[1726264429727,11.06,139.02,139.0,3.5947]
[1726264429928,11.06,139.02,138.97,11.06]
[1726264431535,11.06,139.02,139.01,3.5945]
[1726264434129,22.29578056,139.03,139.01,3.5945]
[1726264434329,11.06,139.02,139.01,3.5945]
[1726264434735,28.35322316,139.02,139.01,3.5945]
[1726264434933,11.06,139.02,139.01,3.5945]
[1726264435738,22.29578056,139.03,139.01,3.5945]
[1726264435941,5.0025574,139.03,139.01,3.5945]
[1726264436139,16.0625574,139.03,139.02,3.5942]
[1726264437640,12.3844,139.03,139.02,3.5942]
[1726264438136,11.06,139.03,139.02,3.5942]
[1726264438338,28.35243039,139.03,139.02,3.5942]
[1726264438730,11.06,139.03,139.02,3.5942]
[1726264442046,20.8472312,139.04,139.02,3.5942]
[1726264442243,28.35243039,139.03,139.02,3.5942]
[1726264442547,11.06,139.03,139.02,3.5942]
[1726264443443,20.8472312,139.04,139.02,3.5942]
[1726264443647,28.35243039,139.03,139.02,3.5942]
[1726264443949,11.06,139.03,139.02,3.5942]
[1726264446050,31.9072312,139.04,139.02,3.5942]
[1726264447549,11.06,139.03,139.02,3.5942]
[1726264448049,28.35243039,139.03,139.02,3.5942]
[1726264448247,17.29243039,139.03,139.02,3.5942]
[1726264448452,3.55480081,139.04,139.02,3.5942]
[1726264448749,11.06,139.03,139.02,3.5942]
[1726264449538,28.35243039,139.03,139.02,3.5942]
[1726264449743,11.06,139.03,139.02,3.5942]
[1726264451351,20.8514396,139.04,139.02,3.5942]
[1726264451553,3.55900921,139.04,139.02,3.5942]
[1726264452447,11.06,139.03,139.02,3.5942]
[1726264453759,20.8514396,139.04,139.02,3.5942]
[1726264453966,11.06,139.03,139.02,3.5942]
[1726264454766,3.55900921,139.04,139.02,3.5942]
[1726264454950,11.06,139.03,139.02,3.5942]
[1726264455951,3.60956221,139.04,139.02,3.5942]
[1726264456158,11.06,139.03,139.02,3.5942]
[1726264462566,20.90188634,139.04,139.02,3.5942]
[1726264462765,11.06,139.03,139.02,3.5942]
[1726264462964,11.06,139.03,138.98,11.06]
[1726264462965,11.06,139.03,138.96,1.376]
[1726264463162,11.06,139.01,138.96,12.436]
[1726264463567,11.06,139.01,139.0,3.5946]
[1726264463870,11.06,139.02,138.96,1.376]
[1726264464058,3.64840338,139.03,139.01,3.5944]
[1726264464265,11.06,139.02,139.01,3.5944]
[1726264468484,20.91362058,139.03,139.01,3.5944]
[1726264468785,11.06,139.02,139.01,3.5944]
[1726264471784,11.06,139.02,139.0,3.5945]
[1726264472586,11.06,139.02,139.01,3.5945]
[1726264473883,3.61989124,139.03,139.02,3.5942]
[1726264474185,11.06,139.03,139.02,3.5942]
[1726264474383,14.72062396,139.03,139.02,3.5942]
[1726264474779,14.72062396,139.03,139.01,3.5944]
[1726264475876,14.72062396,139.03,139.02,3.5942]
[1726264475877,32.01362226,139.03,139.02,3.5942]
[1726264477682,28.3529983,139.03,139.02,3.5942]
[1726264477885,31.90815872,139.03,139.02,3.5942]
[1726264478083,28.3529983,139.03,139.02,3.5942]
[1726264478483,11.06,139.03,139.02,3.5942]
[1726264478684,28.3529983,139.03,139.02,3.5942]
[1726264479289,11.06,139.03,139.02,3.5942]
[1726264479591,28.3529983,139.03,139.02,3.5942]
[1726264479990,11.06,139.03,139.02,3.5942]
[1726264481085,11.06,139.03,138.96,1.376]
[1726264481383,28.3529983,139.03,138.97,11.06]
[1726264481577,11.06,139.03,138.97,11.06]
[1726264481992,28.35286451,139.03,138.97,11.06]
[1726264482194,11.06,139.03,139.01,3.5943]
[1726264482393,11.06,139.03,138.96,1.376]
[1726264482690,11.06,139.02,138.97,11.06]
[1726264482880,11.06,139.02,139.01,3.5942]
[1726264487988,17.29292228,139.03,139.01,3.5942]
[1726264488292,28.35292228,139.02,139.01,3.5942]
[1726264488593,11.06,139.02,139.01,3.5942]
[1726264490092,17.29292228,139.03,139.01,3.5942]
[1726264490292,28.35292228,139.02,138.96,12.436]
[1726264490490,11.06,139.02,138.96,12.436]
[1726264491087,28.35292228,139.02,138.96,12.436]
[1726264491299,17.29292228,139.01,138.96,12.436]
[1726264491596,17.29292228,139.0,138.96,12.436]
[1726264491795,11.06,139.02,139.01,3.5945]
[1726264498903,17.29425168,139.03,139.01,3.5945]
[1726264499097,28.35425168,139.02,139.01,3.5945]
[1726264499403,11.06,139.02,139.01,3.5945]
[1726264504104,17.29425168,139.03,139.01,3.5945]
[1726264504300,11.06,139.02,139.01,3.5945]
[1726264504604,28.35425168,139.02,139.01,3.5945]
[1726264504807,11.06,139.02,139.01,3.5945]
[1726264509695,11.06,139.02,139.0,3.5946]
[1726264510007,11.06,139.01,139.0,3.5946]
[1726264519308,11.06,139.01,138.96,1.376]
[1726264519500,20.88865168,139.02,138.99,3.5949]
[1726264519700,17.29425168,139.01,138.99,3.5949]
[1726264519902,3.5944,139.02,138.99,3.5949]
[1726264520118,3.5944,139.02,139.0,3.5947]
[1726264520709,11.06,139.01,139.0,3.5947]
[1726264521108,14.6545,139.01,138.99,3.5949]
[1726264522511,11.06,139.01,138.99,3.5949]
[1726264524209,14.6545,139.01,138.99,3.5949]
[1726264524409,14.6545,139.01,138.98,3.5952]
[1726264524603,11.06,138.99,138.98,3.5952]
[1726264532419,20.89677653,139.01,138.99,3.595]
[1726264532627,28.35485516,139.0,138.99,3.595]
[1726264532922,11.06,139.0,138.99,3.595]
[1726264533715,11.06,139.0,138.98,3.5951]
[1726264533916,3.64091343,139.01,138.93,17.44839054]
[1726264534121,11.06,138.98,138.93,17.44839054]
[1726264534323,11.06,138.98,138.97,3.5955]
[1726264536513,11.06,138.98,138.93,17.44839054]
[1726264536514,20.82121148,139.0,138.98,3.5951]
[1726264536822,28.35575129,138.99,138.98,3.5951]
[1726264537129,11.06,138.99,138.98,3.5951]
[1726264537317,20.82121148,139.0,138.98,3.5951]
[1726264537518,3.52546019,139.0,138.99,3.595]
[1726264537717,14.58546019,139.0,138.99,3.595]
[1726264538518,31.88090576,139.0,138.99,3.595]
[1726264540039,20.82090576,139.0,138.99,3.595]
[1726264540231,14.58546019,139.0,138.99,3.595]
[1726264540429,31.88090576,139.0,138.99,3.595]
[1726264541334,31.88090576,139.0,138.98,3.5951]
[1726264541535,11.06,138.99,138.98,3.5951]
[1726264553645,20.81612385,139.0,138.99,3.595]
[1726264553840,3.52067828,139.0,138.99,3.595]
[1726264554150,11.06,139.0,138.98,3.5951]
[1726264554447,14.56746811,138.99,138.98,3.5951]
[1726264557249,3.50746811,138.99,138.98,3.5951]
[1726264557435,31.86291368,138.99,138.98,3.5951]
[1726264557632,11.06,138.99,138.98,3.5951]
[1726264557836,28.35544557,138.99,138.98,3.5951]
[1726264558049,3.65413631,139.01,138.93,17.47813994]
[1726264558243,11.06,138.99,138.93,17.47813994]
[1726264558642,11.06,138.99,138.98,3.5956]
[1726264559044,17.2961331,138.99,138.98,3.5956]
[1726264559245,11.06,138.99,138.93,17.47813994]
[1726264559945,11.06,138.99,138.98,3.5956]
[1726264562952,3.63398945,139.01,139.0,3.5951]
[1726264563253,14.69398945,139.01,139.0,3.5951]
[1726264563940,14.69398945,139.01,138.93,2.8525]
[1726264564140,11.06,138.97,138.93,2.8525]
[1726264564738,11.06,138.97,138.96,3.5961]
[1726264567244,3.51634619,138.99,138.98,3.5956]
[1726264567444,11.06,138.99,138.93,2.8525]
[1726264567647,11.06,138.97,138.93,2.8525]
[1726264568157,20.91249822,139.01,138.99,3.5953]
[1726264568350,17.29613727,139.0,138.99,3.5953]
[1726264568651,28.35613727,139.0,138.99,3.5953]
[1726264568841,11.06,139.0,138.99,3.5953]
[1726264569043,14.60405327,139.0,138.99,3.5953]
[1726264572154,11.06,139.0,138.99,3.5953]
[1726264572655,14.57923194,139.0,138.99,3.5953]
[1726264572960,14.57923194,139.0,138.98,3.5954]
[1726264573154,11.06,138.99,138.98,3.5954]
[1726264573353,17.29613727,139.0,138.98,3.5954]
[1726264573546,28.35613727,138.99,138.98,3.5954]
[1726264573950,11.06,138.99,138.98,3.5954]
[1726264574349,17.29613727,139.0,138.99,3.5954]
[1726264574652,28.35613727,139.0,138.99,3.5954]
[1726264574955,11.06,139.0,138.99,3.5954]
[1726264575752,20.84918377,139.01,138.93,2.8525]
[1726264575961,11.06,138.97,138.93,2.8525]
[1726264576649,11.06,138.97,138.96,3.5961]
[1726264579063,3.5175398,138.99,138.98,3.5956]
[1726264579252,14.5775398,138.99,138.98,3.5956]
[1726264579442,11.06,138.99,138.98,3.5956]
[1726264580048,14.63750629,138.99,138.98,3.5956]
[1726264580956,3.57750629,138.99,138.98,3.5956]
[1726264581151,31.93364269,138.99,138.98,3.5956]
[1726264581359,14.63750629,138.99,138.98,3.5956]
[1726264584664,3.57750629,138.99,138.98,3.5956]
[1726264584851,31.93364269,138.99,138.98,3.5956]
[1726264585054,28.3561364,138.99,138.98,3.5956]
[1726264585256,11.06,138.99,138.98,3.5956]
[1726264585660,3.63650781,138.99,138.98,3.5956]
[1726264585962,17.2961364,139.01,138.99,3.5953]
[1726264586157,28.3561364,139.0,138.99,3.5953]
[1726264586548,11.06,139.0,138.99,3.5953]
[1726264588558,17.2961364,139.01,138.99,3.5953]
[1726264588867,11.06,139.0,138.99,3.5953]
[1726264591863,11.06,139.0,138.98,3.5956]
[1726264592051,11.06,138.99,138.98,3.5956]
[1726264593971,17.2961364,139.0,138.98,3.5956]
[1726264594259,11.06,138.99,138.98,3.5956]
[1726264595162,17.2961364,139.0,138.99,3.5954]
[1726264595365,28.3561364,139.0,138.99,3.5954]
[1726264595554,11.06,139.0,138.99,3.5954]
[1726264595755,28.3561364,139.0,138.99,3.5954]
[1726264596267,11.06,139.0,138.99,3.5954]
[1726264596462,28.3561364,139.0,138.99,3.5954]
[1726264596860,11.06,139.0,138.99,3.5954]
[1726264597055,3.64406288,138.99,138.93,1.4325]
[1726264597259,11.06,138.97,138.93,1.4325]
[1726264597665,28.3561364,138.97,138.93,1.4325]
[1726264597951,11.06,138.97,138.93,1.4325]
[1726264598159,3.5505239,138.99,138.98,3.5956]
[1726264598360,11.06,138.99,138.98,3.5956]
[1726264598560,31.91769706,138.99,138.98,3.5956]
[1726264598766,14.62167662,138.99,138.98,3.5956]
[1726264599065,3.56167662,138.99,138.98,3.5956]
[1726264599265,11.06,138.99,138.98,3.5956]
[1726264599469,14.68859297,138.99,138.98,3.5956]
[1726264599864,31.98461341,138.99,138.98,3.5956]
[1726264600065,11.06,138.99,138.98,3.5956]
[1726264600270,11.06,138.99,138.93,12.4925]
[1726264600467,28.35602044,138.99,138.93,12.4925]
[1726264600671,17.29602044,138.98,138.93,12.4925]
[1726264600871,11.06,138.99,138.98,3.5956]
[1726264601971,28.35708678,138.99,138.98,3.5956]
[1726264602171,17.29684113,139.0,138.93,12.4925]
[1726264602473,11.06,138.99,138.93,12.4925]
[1726264603465,17.29684113,139.0,138.99,3.5954]
[1726264603668,11.06,139.0,138.99,3.5954]
[1726264604067,28.35684113,139.0,138.99,3.5954]
[1726264604263,11.06,139.0,138.99,3.5954]
[1726264604665,28.35684113,139.0,138.99,3.5954]
[1726264605367,11.06,139.0,138.99,3.5954]
[1726264605774,28.35684113,139.0,138.99,3.5954]
[1726264605976,11.06,139.0,138.99,3.5954]
[1726264607177,3.68687495,139.01,139.0,3.5951]
[1726264607476,11.06,139.01,138.93,12.4925]
[1726264607679,11.06,138.98,138.93,12.4925]
[1726264609967,11.06,138.98,138.97,3.5959]
[1726264610174,28.35631235,138.98,138.97,3.5959]
[1726264610374,11.06,138.98,138.97,3.5959]
[1726264611572,17.29631235,138.99,138.98,3.5954]
[1726264611772,28.35631235,138.99,138.98,3.5954]
[1726264612376,14.68967226,138.99,138.98,3.5954]
[1726264614869,17.29631235,139.0,138.99,3.5954]
[1726264615269,11.06,139.0,138.99,3.5954]
[1726264615466,11.06,139.0,138.93,1.4325]
[1726264615680,11.06,138.95,138.93,1.4325]
[1726264616782,11.06,138.95,138.94,3.5966]
[1726264617582,11.06,138.95,138.83,1.18181818]
[1726264617783,11.06,138.92,138.87,11.06]
[1726264618575,11.06,138.92,138.91,3.5974]
[1726264619077,28.35631235,138.92,138.91,3.5974]
[1726264619284,11.06,138.92,138.91,3.5974]
[1726264625875,17.06818187,138.95,138.93,3.5969]
[1726264626071,17.06818187,138.94,138.93,3.5969]
[1726264626276,28.12818187,138.94,138.93,3.5969]
[1726264626483,11.06,138.94,138.93,3.5969]
[1726264629989,14.6554507,138.94,138.93,3.5969]
[1726264640493,14.6554507,138.94,138.84,7.1982]
[1726264640793,14.6554507,138.94,138.84,18.2582]
[1726264640794,11.06,138.89,138.84,18.2582]
[1726264640996,11.06,138.89,138.88,3.5982]
[1726264644198,3.5973,138.92,138.89,3.5979]
[1726264644495,11.06,138.9,138.89,3.5979]
[1726264646494,17.0700263,138.95,138.91,3.5973]
[1726264646692,3.5968,138.94,138.91,3.5973]
[1726264646898,11.06,138.92,138.91,3.5973]
[1726264648801,11.06,138.92,138.9,3.5976]
[1726264649000,11.06,138.91,138.9,3.5976]
[1726264653405,4.9047,138.93,138.9,3.5976]
[1726264653596,11.06,138.91,138.9,3.5976]
[1726264655907,11.06,138.91,138.89,3.5979]
[1726264656212,11.06,138.9,138.89,3.5979]
[1726264662912,3.5974,138.91,138.89,3.5979]
[1726264663112,3.5973,138.92,138.89,3.5979]
[1726264663313,11.06,138.9,138.89,3.5979]
[1726264664715,1.3077,138.93,138.83,13.63991818]
[1726264664912,11.06,138.89,138.83,13.63991818]
[1726264665423,11.06,138.89,138.88,3.5982]
[1726264665624,1.3077,138.93,138.83,13.63991818]
[1726264665924,11.06,138.88,138.83,13.63991818]
[1726264666319,11.06,138.88,138.87,3.5985]
[1726264672927,3.5976,138.91,138.88,3.598]
[1726264673117,11.06,138.89,138.88,3.598]
[1726264674725,11.06,138.89,138.83,2.57991818]
[1726264674926,11.06,138.87,138.83,2.57991818]
[1726264675619,18.37940812,138.93,138.86,3.5987]
[1726264675920,11.06,138.9,138.85,11.06]
[1726264676923,11.06,138.9,138.89,3.5979]
[1726264683733,11.06,138.9,138.88,3.598]
[1726264683934,11.06,138.89,138.88,3.598]
[1726264686334,3.5976,138.91,138.88,3.598]
[1726264686534,11.06,138.89,138.88,3.598]
[1726264692344,3.5972,138.92,138.89,3.5978]
[1726264692540,11.06,138.9,138.89,3.5978]
[1726264693733,11.06,138.9,138.88,3.5981]
[1726264693934,11.06,138.89,138.88,3.5981]
[1726264696934,3.5976,138.91,138.88,3.5981]
[1726264697137,11.06,138.89,138.88,3.5981]
[1726264697751,1.3077,138.93,138.89,3.5978]
[1726264697942,11.06,138.9,138.89,3.5978]
[1726264698249,11.06,138.9,138.88,3.5981]
[1726264698452,11.06,138.89,138.88,3.5981]
[1726264699548,3.5973,138.92,138.89,3.5977]
[1726264699744,11.06,138.9,138.89,3.5977]
[1726264701149,3.5973,138.92,138.89,3.5977]
[1726264701349,11.06,138.9,138.89,3.5977]
[1726264701949,28.13160123,138.9,138.89,3.5977]
[1726264702141,11.06,138.9,138.89,3.5977]
[1726264703852,11.06,138.9,138.88,3.5982]
[1726264704048,11.06,138.9,138.83,2.57991818]
[1726264704244,11.06,138.88,138.83,13.63991818]
[1726264705855,11.06,138.88,138.87,3.5985]
[1726264706462,11.06,138.89,138.87,3.5985]
[1726264706761,11.06,138.88,138.85,3.5988]
[1726264706963,18.37930123,138.93,138.83,2.57991818]
[1726264706964,307.21900791,138.92,138.83,2.57991818]
[1726264707262,11.06,138.87,138.83,2.57991818]
[1726264707562,11.06,138.87,138.86,3.5987]
[1726264708151,3.5977,138.9,138.83,2.57991818]
[1726264708351,17.07160123,138.91,138.83,2.57991818]
[1726264708352,17.07160123,138.91,138.84,11.06]
[1726264708552,11.06,138.89,138.84,11.06]
[1726264708961,11.06,138.89,138.88,3.5981]
[1726264710764,28.13160123,138.89,138.88,3.5981]
[1726264710956,28.13160123,138.89,138.87,3.5984]
[1726264711153,17.07160123,138.88,138.87,3.5984]
[1726264711357,11.06,138.89,138.87,3.5984]
[1726264711858,28.13160123,138.89,138.87,3.5984]
[1726264712053,17.07160123,138.88,138.87,3.5984]
[1726264712455,11.06,138.89,138.87,3.5984]
[1726264712753,11.06,138.88,138.83,2.60281818]
[1726264712959,11.06,138.86,138.83,2.60281818]
[1726264713357,11.06,138.86,138.85,3.5988]
[1726264714567,28.13160123,138.86,138.85,3.5988]
[1726264714956,1.3687,138.89,138.83,2.60281818]
[1726264715164,1.3687,138.89,138.84,11.06]
[1726264715363,18.44030123,138.89,138.84,11.06]
[1726264715567,28.13160123,138.88,138.83,2.60281818]
[1726264715863,17.07160123,138.87,138.83,2.60281818]
[1726264716058,11.06,138.88,138.83,2.60281818]
[1726264717766,11.06,138.88,138.86,3.5985]
[1726264718158,11.06,138.88,138.83,2.60281818]
[1726264718470,11.06,138.87,138.83,2.60281818]
[1726264719067,11.06,138.87,138.86,3.5987]
[1726264720656,1.3687,138.89,138.86,3.5987]
[1726264720966,11.06,138.87,138.86,3.5987]
[1726264724878,1.3687,138.89,138.87,3.5983]
[1726264725071,11.06,138.88,138.83,2.60281818]
[1726264725668,11.06,138.88,138.83,13.66281818]
[1726264726774,11.06,138.88,138.87,3.5985]
[1726264737185,1.3687,138.89,138.87,3.5985]
[1726264737381,11.06,138.88,138.87,3.5985]
[1726264743894,11.06,138.88,138.86,3.5986]
[1726264744089,11.06,138.87,138.86,3.5986]
[1726264758211,3.5982,138.88,138.86,3.5986]
[1726264758513,11.06,138.87,138.86,3.5986]
[1726264759314,28.13249303,138.87,138.86,3.5986]
[1726264759612,11.06,138.87,138.86,3.5986]
[1726264760413,3.5982,138.88,138.86,3.5986]
[1726264760613,11.06,138.87,138.86,3.5986]
[1726264760815,3.5982,138.88,138.86,3.5986]
[1726264761015,11.06,138.87,138.86,3.5986]
[1726264763718,28.13249303,138.87,138.86,3.5986]
[1726264763922,11.06,138.87,138.86,3.5986]
[1726264765621,4.9668,138.89,138.86,3.5986]
[1726264765809,11.06,138.87,138.86,3.5986]
[1726264766214,28.13249303,138.87,138.86,3.5986]
[1726264766623,11.06,138.87,138.86,3.5986]
[1726264767110,3.5983,138.88,138.86,3.5986]
[1726264767315,11.06,138.87,138.86,3.5986]
[1726264769918,28.13249303,138.87,138.86,3.5986]
[1726264770321,11.06,138.87,138.86,3.5986]
[1726264772824,3.5983,138.88,138.86,3.5986]
[1726264773130,11.06,138.87,138.86,3.5986]
[1726264776232,28.13249303,138.87,138.86,3.5986]
[1726264776623,11.06,138.87,138.86,3.5986]
[1726264778734,28.13249303,138.87,138.86,3.5986]
[1726264779531,11.06,138.87,138.86,3.5986]
[1726264783135,3.5983,138.88,138.86,3.5986]
[1726264783438,11.06,138.87,138.86,3.5986]
[1726264783735,28.13249303,138.87,138.86,3.5986]
[1726264783930,11.06,138.87,138.86,3.5986]
[1726264785828,11.06,138.87,138.85,3.5989]
[1726264786033,11.06,138.86,138.85,3.5989]
[1726264789036,28.13249303,138.86,138.85,3.5989]
[1726264789234,11.06,138.86,138.85,3.5989]
[1726264790839,28.13249303,138.86,138.85,3.5989]
[1726264791233,11.06,138.86,138.85,3.5989]
[1726264792638,3.5983,138.88,138.86,3.5987]
[1726264793241,11.06,138.87,138.86,3.5987]
[1726264794643,28.13249303,138.87,138.86,3.5987]
[1726264794846,11.06,138.87,138.86,3.5987]
[1726264796247,11.06,138.87,138.85,3.5989]
[1726264798945,11.06,138.86,138.85,3.5989]
[1726264801044,18.44119303,138.89,138.83,1.18181818]
[1726264801252,17.07249303,138.88,138.86,11.06]
[1726264801554,10.25625842,139.03,138.94,3.5966]
[1726264801855,1.07367462,139.02,138.9,11.06]
[1726264802147,1.0734591,139.01,138.93,11.06]
[1726264802343,11.06,138.99,138.93,11.06]
[1726264802546,11.06,139.0,138.98,3.5954]
[1726264802747,11.06,139.0,138.94,11.06]
[1726264802946,1.3579,139.03,138.95,11.06]
[1726264803263,11.06,139.02,139.0,3.5949]
[1726264803653,1.4263,139.04,139.0,3.5949]
[1726264803847,11.06,139.02,139.01,3.5948]
[1726264805343,11.06,139.03,139.02,3.5944]
[1726264806055,11.06,139.03,139.01,3.5948]
[1726264806850,11.06,139.03,138.97,0.6945]
[1726264807044,3.59437121,139.08,138.97,0.6945]
[1726264807247,11.06,139.01,138.97,0.6945]
[1726264807854,11.06,139.02,139.01,3.5948]
[1726264811254,3.52998092,139.05,138.97,0.6945]
[1726264811452,11.06,139.03,138.97,0.6945]
[1726264812065,11.06,139.03,139.02,3.5946]
[1726264812559,7.17177424,139.06,138.98,11.06]
[1726264812760,11.06,139.03,138.98,11.06]
[1726264812957,11.06,139.04,138.98,11.06]
[1726264813758,11.06,139.04,139.02,3.5943]
[1726264814664,3.5934,139.07,138.98,11.06]
[1726264814865,11.06,139.04,138.98,11.06]
[1726264815266,1.4335,139.11,138.99,11.06]
[1726264815466,1.4335,139.11,139.0,11.06]
[1726264815467,11.06,139.06,139.0,11.06]
[1726264816059,3.5926,139.1,139.0,11.06]
[1726264816260,11.06,139.06,139.0,11.06]
[1726264816663,3.5921,139.12,139.03,11.06]
[1726264816962,1.3472,139.15,139.04,11.06]